fUSD/lending_fUSD_20250716
["ID","MTS","AMOUNT","RATE_DAILY","PERIOD"]
[372443425,1752646261661,-151.0,0.00021917,2]
[372443426,1752646261671,-151.0,0.00021917,2]
[372443427,1752646261680,-460.0,0.00021917,2]
[372443428,1752646261690,-151.0,0.00021917,2]
[372443429,1752646261700,-7610.08,0.00021917,2]
[372443430,1752646261710,-1918.98,0.00021917,2]
[372443431,1752646261720,-163.047562,0.00021917,2]
[372443432,1752646261729,-461.17828677,0.00021917,2]
[372443433,1752646261739,-12764.1,0.00021917,2]
[372443434,1752646261748,-460.0,0.00021917,2]
[372443435,1752646261758,-3185.29,0.00021917,2]
[372443436,1752646261767,-736.57,0.00021917,2]
[372443437,1752646261779,-3803.47,0.00021917,2]
[372443438,1752646261788,-460.0,0.00021917,2]
[372443439,1752646261798,-506.0,0.00021917,2]
[372443440,1752646261808,-460.0,0.00021917,2]
[372443441,1752646261818,-460.0,0.00021917,2]
[372443442,1752646261828,-461.71328183,0.00021917,2]
[372443443,1752646261839,-966.23,0.00021917,2]
[372443444,1752646261849,-460.0,0.00021917,2]
[372443445,1752646261859,-1199.99,0.00021917,2]
[372443446,1752646261870,-500.99480526,0.00021917,2]
[372443447,1752646261880,-460.0,0.00021917,2]
[372443448,1752646261890,-460.0,0.00021917,2]
[372443449,1752646261900,-2566.84,0.00021917,2]
[372443450,1752646261910,-567.53,0.00021917,2]
[372443451,1752646261920,-460.0,0.00021917,2]
[372443452,1752646261930,-1577.03,0.00021917,2]
[372443453,1752646261939,-3596.92,0.00021917,2]
[372443454,1752646261949,-460.0,0.00021917,2]
[372443455,1752646261959,-1730.13,0.00021917,2]
[372443456,1752646261968,-2321.3,0.00021917,2]
[372443457,1752646261978,-4126.25,0.00021917,2]
[372443458,1752646261990,-500.0,0.00021917,2]
[372443459,1752646262001,-3065.3,0.00021917,2]
[372443460,1752646262012,-460.0,0.00021917,2]
[372443461,1752646262023,-500.0,0.00021917,2]
[372443462,1752646262041,-500.0,0.00021917,2]
[372443463,1752646262055,-500.0,0.00021917,2]
[372443464,1752646262065,-502.84470366,0.00021917,2]
[372443465,1752646262077,-4736.96,0.00021917,2]
[372443466,1752646262087,-2847.59,0.00021917,2]
[372443467,1752646262098,-691.47,0.00021917,2]
[372443468,1752646262108,-460.0,0.00021917,2]
[372443469,1752646262118,-5336.56,0.00021917,2]
[372443470,1752646262129,-460.0,0.00021917,2]
[372443471,1752646262139,-5111.15,0.00021917,2]
[372443472,1752646262149,-572.58,0.00021917,2]
[372443473,1752646262159,-8492.14,0.00021917,2]
[372443474,1752646262169,-460.0,0.00021917,2]
[372443475,1752646262179,-154.7687,0.00021917,2]
[372443476,1752646262189,-460.44132861,0.00021917,2]
[372443477,1752646262200,-693.74,0.00021917,2]
[372443478,1752646262210,-154.7687,0.00021917,2]
[372443479,1752646262220,-151.0,0.00021917,2]
[372443480,1752646262231,-151.0,0.00021917,2]
[372443481,1752646262242,-151.0,0.00021917,2]
[372443482,1752646262252,-1557.04,0.00021917,2]
[372443483,1752646262262,-154.7687,0.00021917,2]
[372443484,1752646262273,-5182.03,0.00021917,2]
[372443485,1752646262283,-543.91825323,0.00021917,2]
[372443486,1752646262293,-151.0,0.00021917,2]
[372443487,1752646262302,-154.7687,0.00021917,2]
[372443488,1752646262312,-151.0,0.00021917,2]
[372443489,1752646262322,-154.7687,0.00021917,2]
[372443490,1752646262331,-506.74815511,0.00021917,2]
[372443491,1752646262342,-7808.38,0.00021917,2]
[372443492,1752646262351,-161.25523575,0.00021917,2]
[372443493,1752646262361,-154.7687,0.00021917,2]
[372443494,1752646262371,-151.0,0.00021917,2]
[372443495,1752646262381,-11496.38,0.00021917,2]
[372443496,1752646262391,-1669.54,0.00021917,2]
[372443497,1752646262401,-154.7687,0.00021917,2]
[372443498,1752646262411,-154.7687,0.00021917,2]
[372443499,1752646262421,-3310.87,0.00021917,2]
[372443500,1752646262431,-3298.33,0.00021917,2]
[372443501,1752646262440,-151.0,0.00021917,2]
[372443502,1752646262450,-154.7687,0.00021917,2]
[372443503,1752646262460,-2540.86,0.00021917,2]
[372443504,1752646262470,-154.7687,0.00021917,2]
[372443505,1752646262480,-154.7687,0.00021917,2]
[372443506,1752646262490,-154.7687,0.00021917,2]
[372443507,1752646262499,-154.7687,0.00021917,2]
[372443508,1752646262509,-460.0,0.00021917,2]
[372443509,1752646262519,-154.7687,0.00021917,2]
[372443510,1752646262529,-154.7687,0.00021917,2]
[372443511,1752646262539,-656.09,0.00021917,2]
[372443512,1752646262548,-154.7687,0.00021917,2]
[372443513,1752646262558,-460.0,0.00021917,2]
[372443514,1752646262567,-5315.06,0.00021917,2]
[372443515,1752646262577,-460.0,0.00021917,2]
[372443516,1752646262587,-154.7687,0.00021917,2]
[372443517,1752646262597,-154.7687,0.00021917,2]
[372443518,1752646262607,-154.7687,0.00021917,2]
[372443519,1752646262617,-4656.37,0.00021917,2]
[372443520,1752646262627,-154.768702,0.00021917,2]
[372443521,1752646262638,-150.0,0.00021917,2]
[372443522,1752646262647,-589.32,0.00021917,2]
[372443523,1752646262657,-460.0,0.00021917,2]
[372443524,1752646262667,-7819.85,0.00021917,2]
[372443525,1752646262676,-500.0,0.00021917,2]
[372443526,1752646262686,-168.0,0.00021917,2]
[372443527,1752646262696,-1000.0,0.00021918,3]
[372443528,1752646262707,-1000.0,0.00021918,3]
[372443529,1752646262716,-1000.0,0.00021918,3]
[372443530,1752646262726,-1000.0,0.00021918,3]
[372443531,1752646262736,-1000.0,0.00021918,3]
[372443532,1752646262747,-1000.0,0.00021918,3]
[372443533,1752646262756,-1000.0,0.00021918,3]
[372443534,1752646262766,-1000.0,0.00021918,3]
[372443535,1752646262775,-1000.0,0.00021918,3]
[372443536,1752646262786,-1000.0,0.00021918,3]
[372443537,1752646262796,-1000.0,0.00021918,3]
[372443538,1752646262807,-1000.0,0.00021918,3]
[372443539,1752646262818,-1000.0,0.00021918,3]
[372443540,1752646262829,-1000.0,0.00021918,3]
[372443541,1752646262839,-1000.0,0.00021918,3]
[372443542,1752646262848,-1000.0,0.00021918,3]
[372443543,1752646262858,-1000.0,0.00021918,3]
[372443544,1752646262867,-1000.0,0.00021918,3]
[372443545,1752646262877,-1000.0,0.00021918,3]
[372443546,1752646262887,-1000.0,0.00021918,3]
[372443547,1752646262897,-1000.0,0.00021918,3]
[372443548,1752646262906,-1000.0,0.00021918,3]
[372443549,1752646262916,-1000.0,0.00021918,3]
[372443550,1752646262925,-1000.0,0.00021918,3]
[372443551,1752646262936,-1000.0,0.00021918,3]
[372443552,1752646262945,-1000.0,0.00021918,3]
[372443553,1752646262955,-1000.0,0.00021918,3]
[372443554,1752646262965,-1000.0,0.00021918,3]
[372443555,1752646262975,-1000.0,0.00021918,3]
[372443556,1752646262984,-1000.0,0.00021918,3]
[372443557,1752646262994,-1000.0,0.00021918,3]
[372443558,1752646263004,-1000.0,0.00021918,3]
[372443559,1752646263013,-1000.0,0.00021918,3]
[372443560,1752646263023,-1000.0,0.00021918,3]
[372443561,1752646263036,-1000.0,0.00021918,3]
[372443562,1752646263045,-1000.0,0.00021918,3]
[372443563,1752646263055,-1000.0,0.00021918,3]
[372443564,1752646263064,-1000.0,0.00021918,3]
[372443565,1752646263075,-1000.0,0.00021918,3]
[372443566,1752646263085,-1000.0,0.00021918,3]
[372443567,1752646263095,-1000.0,0.00021918,3]
[372443568,1752646263107,-1000.0,0.00021918,3]
[372443569,1752646263118,-1000.0,0.00021918,3]
[372443570,1752646263236,-1000.0,0.00021918,3]
[372443571,1752646263247,-1000.0,0.00021918,3]
[372443572,1752646263257,-1000.0,0.00021918,3]
[372443573,1752646263267,-1000.0,0.00021918,3]
[372443574,1752646263276,-1000.0,0.00021918,3]
[372443575,1752646263286,-1000.0,0.00021918,3]
[372443576,1752646263296,-1000.0,0.00021918,3]
[372443577,1752646263306,-1000.0,0.00021918,3]
[372443578,1752646263317,-1000.0,0.00021918,3]
[372443579,1752646263327,-1000.0,0.00021918,3]
[372443580,1752646263336,-1000.0,0.00021918,3]
[372443581,1752646263346,-1000.0,0.00021918,3]
[372443582,1752646263356,-1000.0,0.00021918,3]
[372443583,1752646263366,-1000.0,0.00021918,3]
[372443584,1752646263377,-1000.0,0.00021918,3]
[372443585,1752646263387,-736.0,0.00021918,3]
[372443586,1752646263397,-5000.0,0.00021918,2]
[372443587,1752646263407,-151.0,0.00021918,2]
[372443588,1752646263416,-151.0,0.00021918,2]
[372443589,1752646263426,-151.0,0.00021918,2]
[372443590,1752646263435,-151.0,0.00021918,2]
[372443591,1752646263445,-151.0,0.00021918,2]
[372443592,1752646263454,-151.0,0.00021918,2]
[372443593,1752646263464,-151.0,0.00021918,2]
[372443594,1752646263473,-151.0,0.00021918,2]
[372443595,1752646263488,-172.448359,0.00021918,2]
[372443596,1752646263498,-151.0,0.00021918,2]
[372443597,1752646263508,-151.0,0.00021918,2]
[372443598,1752646263517,-151.0,0.00021918,2]
[372443599,1752646263527,-151.0,0.00021918,2]
[372443600,1752646263536,-288.498733,0.00021918,2]
[372443601,1752646263546,-153.0,0.00021918,2]
[372443602,1752646263555,-153.0,0.00021918,2]
[372443603,1752646263564,-153.0,0.00021918,2]
[372443604,1752646263574,-153.0,0.00021918,2]
[372443605,1752646263584,-153.87333875,0.00021918,2]
[372443606,1752646263594,-210.72748344,0.00021918,3]
[372443607,1752646263607,-150.0,0.00021918,2]
[372443608,1752646263617,-500.0,0.00021918,2]
[372443609,1752646263627,-500.0,0.00021918,2]
[372443610,1752646263636,-500.0,0.00021918,2]
[372443611,1752646263646,-150.0,0.00021918,2]
[372443612,1752646263656,-150.0,0.00021918,2]
[372443613,1752646263666,-272.52580525,0.0002192,2]
[372443614,1752646263675,-157.42071008,0.0002192,2]
[372443615,1752646263685,-42866.7104947,0.00021922,2]
[372443616,1752646263695,-272.52580525,0.00021937,2]
[372443617,1752646263705,-327.9233043,0.00021938,2]
[372443618,1752646263714,-2000.0,0.00021944,2]
[372443619,1752646263724,-2000.0,0.00021944,2]
[372443620,1752646263735,-154.15099035,0.00021945,30]
[372443621,1752646263744,-411.0693076,0.00021945,30]
[372443622,1752646263754,-241.11355937,0.00021954,4]
[372443623,1752646263763,-241.11355937,0.00021954,4]
[372443624,1752646263773,-241.11355937,0.00021954,4]
[372443625,1752646263783,-241.11355937,0.00021954,4]
[372443626,1752646263792,-241.11355937,0.00021954,4]
[372443627,1752646263802,-241.11355937,0.00021954,4]
[372443628,1752646263812,-241.11355937,0.00021954,4]
[372443629,1752646263821,-241.11355937,0.00021954,4]
[372443630,1752646263831,-241.11355937,0.00021954,4]
[372443631,1752646263841,-241.11355937,0.00021954,4]
[372443632,1752646263851,-241.11355937,0.00021954,4]
[372443633,1752646263860,-241.11355937,0.00021954,4]
[372443634,1752646263870,-241.11355937,0.00021954,4]
[372443635,1752646263880,-241.11355937,0.00021954,4]
[372443636,1752646263890,-241.11355937,0.00021954,4]
[372443637,1752646263900,-241.11355937,0.00021954,4]
[372443638,1752646263909,-241.11355937,0.00021954,4]
[372443639,1752646263925,-242.01653799,0.00021954,4]
[372443640,1752646263935,-242.01653799,0.00021954,4]
[372443641,1752646263945,-242.01653799,0.00021954,4]
[372443642,1752646263954,-242.01653799,0.00021954,4]
[372443643,1752646263964,-242.01653799,0.00021954,4]
[372443644,1752646263973,-242.01653799,0.00021954,4]
[372443645,1752646263983,-242.01653799,0.00021954,4]
[372443646,1752646263992,-242.01653799,0.00021954,4]
[372443647,1752646264002,-242.01653799,0.00021954,4]
[372443648,1752646264012,-242.01653799,0.00021954,4]
[372443649,1752646264021,-242.01653799,0.00021954,4]
[372443650,1752646264031,-242.01653799,0.00021954,4]
[372443651,1752646264041,-242.01653799,0.00021954,4]
[372443652,1752646264051,-242.01653799,0.00021954,4]
[372443653,1752646264061,-242.01653799,0.00021954,4]
[372443654,1752646264070,-242.01653799,0.00021954,4]
[372443655,1752646264079,-242.01653799,0.00021954,4]
[372443656,1752646264089,-258.581617,0.00021954,4]
[372443657,1752646264098,-258.581617,0.00021954,4]
[372443658,1752646264109,-258.581617,0.00021954,4]
[372443659,1752646264118,-258.581617,0.00021954,4]
[372443660,1752646264128,-258.581617,0.00021954,4]
[372443661,1752646264138,-258.581617,0.00021954,4]
[372443662,1752646264148,-258.581617,0.00021954,4]
[372443663,1752646264158,-258.581617,0.00021954,4]
[372443664,1752646264168,-258.581617,0.00021954,4]
[372443665,1752646264178,-258.581617,0.00021954,4]
[372443666,1752646264187,-258.581617,0.00021954,4]
[372443667,1752646264197,-258.581617,0.00021954,4]
[372443668,1752646264207,-258.581617,0.00021954,4]
[372443669,1752646264217,-258.581617,0.00021954,4]
[372443670,1752646264227,-258.581617,0.00021954,4]
[372443671,1752646264237,-258.581617,0.00021954,4]
[372443672,1752646264246,-258.581617,0.00021954,4]
[372443673,1752646264256,-272.52580525,0.00021954,2]
[372443674,1752646264266,-167.43387742,0.00021954,2]
[372443675,1752646264275,-5041.47399386,0.00021954,2]
[372443676,1752646264284,-166.75489779,0.00021954,4]
[372443677,1752646264294,-391.21506496,0.00021954,2]
[372443678,1752646264303,-162.66972867,0.00021954,2]
[372443679,1752646264313,-2620.86497532,0.00021969,6]
[372443680,1752646264322,-500.0,0.00021973,2]
[372443681,1752646264333,-504.08184407,0.00021973,2]
[372443682,1752646264343,-500.0,0.00021973,2]
[372443683,1752646264353,-500.0,0.00021973,2]
[372443684,1752646264363,-500.0,0.00021973,2]
[372443685,1752646264372,-500.62068923,0.00021973,2]
[372443686,1752646264383,-500.0,0.00021973,2]
[372443687,1752646264393,-500.0,0.00021973,2]
[372443688,1752646264403,-645.52834518,0.00021973,2]
[372443689,1752646264412,-500.0,0.00021973,2]
[372443690,1752646264421,-504.18779699,0.00021973,2]
[372443691,1752646264431,-501.10542618,0.00021973,2]
[372443692,1752646264440,-500.0,0.00021973,2]
[372443693,1752646264449,-509.18292601,0.00021973,2]
[372443694,1752646264458,-500.0,0.00021973,2]
[372443695,1752646264468,-500.0,0.00021973,2]
[372443696,1752646264477,-159.65964935,0.00021973,2]
[372443697,1752646264487,-500.0,0.00021973,2]
[372443698,1752646264496,-503.49336062,0.00021973,2]
[372443699,1752646264506,-525.32884282,0.00021973,2]
[372443700,1752646264516,-500.0,0.00021973,2]
[372443701,1752646264525,-503.10552444,0.00021973,2]
[372443702,1752646264535,-501.17518061,0.00021973,2]
[372443703,1752646264544,-500.0,0.00022,2]
[372443704,1752646264553,-500.0,0.00022,2]
[372443705,1752646264563,-500.0,0.00022,2]
[372443706,1752646264572,-500.0,0.00022,2]
[372443707,1752646264582,-500.0,0.00022,2]
[372443708,1752646264591,-291.56165359,0.00022,2]
[372443709,1752646264601,-3000.0,0.00022,2]
[372443710,1752646264611,-3000.0,0.00022,2]
[372443711,1752646264620,-3000.0,0.00022,2]
[372443712,1752646264631,-2508.25,0.00022,2]
[372443713,1752646264640,-5000.0,0.00022,7]
[372443714,1752646264650,-5001.0,0.00022,2]
[372443715,1752646264659,-5002.66819893,0.00022,2]
[372443716,1752646264668,-2500.48020032,0.00022,2]
[372443717,1752646264677,-2018.524215,0.00022,2]
[372443718,1752646264687,-210.5,0.00022,2]
[372443719,1752646264697,-849.0,0.00022,2]
[372443720,1752646264706,-361.0,0.00022,2]
[372443721,1752646264716,-241.11355937,0.00022006,4]
[372443722,1752646264725,-242.01653799,0.00022006,4]
[372443723,1752646264735,-258.581617,0.00022006,4]
[372443724,1752646264745,-154.15099035,0.00022027,30]
[372443725,1752646264755,-411.0693076,0.00022027,30]
[372443726,1752646264764,-2620.86497532,0.00022038,6]
[372443727,1752646264774,-500.0,0.00022038,2]
[372443728,1752646264784,-1793.34,0.00022038,2]
[372443729,1752646264793,-150.0,0.00022038,2]
[372443730,1752646264803,-156.6748047,0.00022039,2]
[372443731,1752646264813,-5975.4295118,0.00022039,2]
[372443732,1752646264826,-3192.6895888,0.00022039,2]
[372443733,1752646264835,-39811.9966375,0.00022039,2]
[372443734,1752646264844,-44410.5475502,0.00022039,2]
[372443735,1752646264854,-5366.7399018,0.00022039,2]
[372443736,1752646264864,-1826.89,0.00022044,2]
[372443737,1752646264873,-157.13513858,0.00022045,2]
[372443738,1752646264884,-500.0,0.00022048,2]
[372443739,1752646264894,-534.29,0.00022049,2]
[372443740,1752646264903,-1152.25,0.00022049,2]
[372443741,1752646264914,-500.0,0.00022049,2]
[372443742,1752646264925,-500.0,0.00022049,2]
[372443743,1752646264937,-500.0,0.00022049,2]
[372443744,1752646264947,-150.8,0.00022052,3]
[372443745,1752646264956,-585.08,0.00022052,2]
[372443746,1752646264965,-568.71,0.00022052,2]
[372443747,1752646264975,-585.08,0.00022053,2]
[372443748,1752646264984,-585.08,0.00022053,2]
[372443749,1752646264994,-585.08,0.00022053,2]
[372443750,1752646265004,-585.08,0.00022053,2]
[372443751,1752646265013,-585.08,0.00022053,2]
[372443752,1752646265023,-585.08,0.00022053,2]
[372443753,1752646265036,-585.08,0.00022053,2]
[372443754,1752646265055,-585.08,0.00022053,2]
[372443755,1752646265064,-534.29,0.00022053,2]
[372443756,1752646265075,-534.29,0.00022053,2]
[372443757,1752646265087,-534.29,0.00022053,2]
[372443758,1752646265099,-534.29,0.00022053,2]
[372443759,1752646265109,-534.29,0.00022053,2]
[372443760,1752646265118,-534.29,0.00022053,2]
[372443761,1752646265127,-534.29,0.00022053,2]
[372443762,1752646265137,-534.29,0.00022053,2]
[372443763,1752646265147,-534.29,0.00022053,2]
[372443764,1752646265156,-534.29,0.00022053,2]
[372443765,1752646265166,-534.29,0.00022053,2]
[372443766,1752646265176,-534.38704579,0.00022053,2]
[372443767,1752646265185,-1152.25,0.00022053,2]
[372443768,1752646265195,-1152.25,0.00022053,2]
[372443769,1752646265205,-1152.25,0.00022053,2]
[372443770,1752646265215,-1152.25,0.00022053,2]
[372443771,1752646265224,-1152.25,0.00022053,2]
[372443772,1752646265233,-1152.25,0.00022053,2]
[372443773,1752646265243,-1152.25,0.00022053,2]
[372443774,1752646265252,-1152.25,0.00022053,2]
[372443775,1752646265261,-1152.25,0.00022053,2]
[372443776,1752646265272,-1152.25,0.00022053,2]
[372443777,1752646265281,-1152.25,0.00022053,2]
[372443778,1752646265291,-1152.29,0.00022053,2]
[372443779,1752646265300,-1826.89,0.00022053,2]
[372443780,1752646265310,-1826.89,0.00022053,2]
[372443781,1752646265319,-1826.89,0.00022053,2]
[372443782,1752646265329,-1826.89,0.00022053,2]
[372443783,1752646265338,-1826.89,0.00022053,2]
[372443784,1752646265347,-1826.89,0.00022053,2]
[372443785,1752646265357,-1826.89,0.00022053,2]
[372443786,1752646265367,-1826.89,0.00022053,2]
[372443787,1752646265376,-500.0,0.00022053,2]
[372443788,1752646265385,-500.0,0.00022053,2]
[372443789,1752646265395,-500.0,0.00022053,2]
[372443790,1752646265405,-500.0,0.00022053,2]
[372443791,1752646265414,-500.0,0.00022053,2]
[372443792,1752646265423,-500.0,0.00022053,2]
[372443793,1752646265433,-500.0,0.00022053,2]
[372443794,1752646265442,-500.0,0.00022053,2]
[372443795,1752646265451,-500.0,0.00022053,2]
[372443796,1752646265460,-265.4330037,0.00022053,2]
[372443797,1752646265470,-500.0,0.00022053,2]
[372443798,1752646265479,-500.0,0.00022053,2]
[372443799,1752646265489,-500.0,0.00022053,2]
[372443800,1752646265498,-500.0,0.00022053,2]
[372443801,1752646265508,-500.0,0.00022053,2]
[372443802,1752646265518,-500.0,0.00022053,2]
[372443803,1752646265528,-500.0,0.00022053,2]
[372443804,1752646265537,-402.92346617,0.00022053,2]
[372443805,1752646265546,-500.0,0.00022053,2]
[372443806,1752646265556,-500.0,0.00022053,2]
[372443807,1752646265565,-500.0,0.00022053,2]
[372443808,1752646265575,-500.0,0.00022053,2]
[372443809,1752646265584,-500.0,0.00022053,2]
[372443810,1752646265594,-183.25076354,0.00022053,2]
[372443811,1752646265603,-1793.34,0.00022053,2]
[372443812,1752646265612,-1793.34,0.00022053,2]
[372443813,1752646265622,-1793.34,0.00022053,2]
[372443814,1752646265632,-1793.34,0.00022053,2]
[372443815,1752646265641,-1793.34,0.00022053,2]
[372443816,1752646265651,-1793.34,0.00022053,2]
[372443817,1752646265660,-1793.34,0.00022053,2]
[372443818,1752646265670,-1793.34,0.00022053,2]
[372443819,1752646265679,-1793.34,0.00022053,2]
[372443820,1752646265688,-1793.34,0.00022053,2]
[372443821,1752646265698,-1793.34,0.00022053,2]
[372443822,1752646265707,-1793.42649032,0.00022053,2]
[372443823,1752646265717,-500.0,0.00022053,2]
[372443824,1752646265726,-500.0,0.00022053,2]
[372443825,1752646265735,-500.0,0.00022053,2]
[372443826,1752646265744,-500.0,0.00022053,2]
[372443827,1752646265754,-540.4885131,0.00022053,2]
[372443828,1752646265763,-568.71,0.00022053,2]
[372443829,1752646265773,-568.71,0.00022053,2]
[372443830,1752646265783,-568.71,0.00022053,2]
[372443831,1752646265792,-568.71,0.00022053,2]
[372443832,1752646265801,-568.71,0.00022053,2]
[372443833,1752646265811,-568.71,0.00022053,2]
[372443834,1752646265820,-568.71,0.00022053,2]
[372443835,1752646265829,-568.71,0.00022053,2]
[372443836,1752646265838,-150.0,0.00022053,2]
[372443837,1752646265847,-150.0,0.00022053,2]
[372443838,1752646265857,-150.0,0.00022053,2]
[372443839,1752646265867,-150.0,0.00022053,2]
[372443840,1752646265876,-460.0,0.00022054,2]
[372443841,1752646265886,-460.0,0.00022054,2]
[372443842,1752646265895,-582.49,0.00022054,2]
[372443843,1752646265905,-460.0,0.00022054,2]
[372443844,1752646265914,-460.0,0.00022054,2]
[372443845,1752646265924,-460.0,0.00022054,2]
[372443846,1752646265933,-460.0,0.00022054,2]
[372443847,1752646265943,-460.0,0.00022054,2]
[372443848,1752646265952,-460.0,0.00022054,2]
[372443849,1752646265961,-520.62,0.00022054,2]
[372443850,1752646265971,-460.0,0.00022054,2]
[372443851,1752646265980,-460.0,0.00022054,2]
[372443852,1752646265990,-460.0,0.00022054,2]
[372443853,1752646265999,-510.02,0.00022054,2]
[372443854,1752646266009,-670.66,0.00022054,2]
[372443855,1752646266019,-525.36907977,0.00022054,2]
[372443856,1752646266029,-460.0,0.00022054,2]
[372443857,1752646266042,-460.0,0.00022054,2]
[372443858,1752646266053,-460.0,0.00022054,2]
[372443859,1752646266063,-460.0,0.00022054,2]
[372443860,1752646266072,-460.0,0.00022054,2]
[372443861,1752646266081,-465.61578846,0.00022054,2]
[372443862,1752646266090,-726.38,0.00022054,2]
[372443863,1752646266099,-460.0,0.00022054,2]
[372443864,1752646266109,-460.0,0.00022054,2]
[372443865,1752646266118,-517.2331191,0.00022054,2]
[372443866,1752646266128,-525.50841903,0.00022054,2]
[372443867,1752646266137,-1000.0,0.00022054,2]
[372443868,1752646266147,-460.0,0.00022054,2]
[372443869,1752646266157,-460.0,0.00022054,2]
[372443870,1752646266166,-460.0,0.00022054,2]
[372443871,1752646266175,-193.87326752,0.00022054,2]
[372443872,1752646266185,-469.96,0.00022054,2]
[372443873,1752646266195,-1115.77,0.00022054,2]
[372443874,1752646266204,-816.04,0.00022054,2]
[372443875,1752646266214,-460.0,0.00022054,2]
[372443876,1752646266224,-460.0,0.00022054,2]
[372443877,1752646266233,-460.0,0.00022054,2]
[372443878,1752646266243,-460.0,0.00022054,2]
[372443879,1752646266253,-150.0,0.00022054,2]
[372443880,1752646266262,-929.43205491,0.00022054,2]
[372443881,1752646266272,-460.0,0.00022054,2]
[372443882,1752646266281,-150.0,0.00022054,2]
[372443883,1752646266291,-488.16164168,0.00022054,2]
[372443884,1752646266301,-460.0,0.00022054,2]
[372443885,1752646266310,-573.38,0.00022054,2]
[372443886,1752646266319,-479.56,0.00022054,2]
[372443887,1752646266329,-653.05,0.00022054,2]
[372443888,1752646266339,-465.48,0.00022054,2]
[372443889,1752646266348,-167.050915,0.00022054,2]
[372443890,1752646266358,-460.0,0.00022054,2]
[372443891,1752646266368,-460.0,0.00022054,2]
[372443892,1752646266379,-460.0,0.00022054,2]
[372443893,1752646266388,-460.0,0.00022054,2]
[372443894,1752646266398,-1319.07,0.00022054,2]
[372443895,1752646266408,-460.0,0.00022054,2]
[372443896,1752646266417,-630.58,0.00022054,2]
[372443897,1752646266427,-791.54,0.00022054,2]
[372443898,1752646266437,-460.0,0.00022054,2]
[372443899,1752646266446,-879.26,0.00022054,2]
[372443900,1752646266455,-835.21,0.00022054,2]
[372443901,1752646266465,-460.0,0.00022054,2]
[372443902,1752646266474,-460.0,0.00022054,2]
[372443903,1752646266483,-167.99,0.00022054,2]
[372443904,1752646266493,-460.0,0.00022054,2]
[372443905,1752646266502,-483.64,0.00022054,2]
[372443906,1752646266511,-596.2,0.00022054,2]
[372443907,1752646266521,-460.0,0.00022054,2]
[372443908,1752646266530,-614.63,0.00022054,2]
[372443909,1752646266539,-947.9,0.00022054,2]
[372443910,1752646266549,-460.0,0.00022054,2]
[372443911,1752646266558,-460.0,0.00022054,2]
[372443912,1752646266568,-1138.48,0.00022054,2]
[372443913,1752646266577,-460.0,0.00022054,2]
[372443914,1752646266586,-548.13,0.00022054,2]
[372443915,1752646266595,-876.39,0.00022054,2]
[372443916,1752646266605,-460.0,0.00022054,2]
[372443917,1752646266614,-464.13342466,0.00022054,2]
[372443918,1752646266623,-460.0,0.00022054,2]
[372443919,1752646266633,-871.02,0.00022054,2]
[372443920,1752646266643,-460.0,0.00022054,2]
[372443921,1752646266652,-460.0,0.00022054,2]
[372443922,1752646266662,-479.77,0.00022054,2]
[372443923,1752646266671,-460.0,0.00022054,2]
[372443924,1752646266681,-460.0,0.00022054,2]